[Event "Championnat d'Europe Rapide"]
[Date "2024.12.07"]
[White "Kuzubov, Yuriy"]
[Black "Narva, Mai"]
[WhiteElo "2595"]
[BlackElo "2413"]
[Round "5.21"]
[Result "1-0"]
[TimeControl "900+10"]

1. d4 {[%emt 00:00:03] [%clk 00:15:18]} Nf6 {[%emt 00:00:09] [%clk 00:15:10]} 2.
Nf3 {[%emt 00:00:02] [%clk 00:15:26]} g6 {[%emt 00:00:09] [%clk 00:15:11]} 3.
Nbd2 {[%emt 00:00:03] [%clk 00:15:34]} Bg7 {[%emt 00:01:08] [%clk 00:14:13]} 4.
e4 {[%emt 00:00:02] [%clk 00:15:42]} d6 {[%emt 00:00:11] [%clk 00:14:12]} 5.
Bb5+ {[%emt 00:00:02] [%clk 00:15:49]} c6 {[%emt 00:00:45] [%clk 00:13:37]} 6.
Be2 {[%emt 00:00:02] [%clk 00:15:57]} O-O {[%emt 00:00:21] [%clk 00:13:26]} 7.
O-O {[%emt 00:00:02] [%clk 00:16:04]} Bg4 {[%emt 00:02:15] [%clk 00:11:22]} 8.
Re1 {[%emt 00:00:17] [%clk 00:15:57]} Nbd7 {[%emt 00:01:22] [%clk 00:10:10]} 9.
c3 {[%emt 00:00:35] [%clk 00:15:32]} e5 {[%emt 00:00:46] [%clk 00:09:34]} 10.
dxe5 {[%emt 00:00:31] [%clk 00:15:11]} dxe5 {[%emt 00:00:41] [%clk 00:09:03]}
11. Qc2 {[%emt 00:00:07] [%clk 00:15:14]} Qc7 {[%emt 00:01:06] [%clk 00:08:07]}
12. h3 {[%emt 00:00:16] [%clk 00:15:08]} Bxf3 {[%emt 00:00:21] [%clk 00:07:56]}
13. Nxf3 {[%emt 00:00:01] [%clk 00:15:17]} Nc5 {[%emt 00:00:32] [%clk 00:07:35]}
14. Bf1 {[%emt 00:00:06] [%clk 00:15:20]} a5 {[%emt 00:00:37] [%clk 00:07:08]}
15. a4 {[%emt 00:00:42] [%clk 00:14:48]} Rad8 {[%emt 00:00:33] [%clk 00:06:45]}
16. Bc4 {[%emt 00:01:26] [%clk 00:13:33]} Qd6 {[%emt 00:03:14] [%clk 00:03:40]}
17. Bg5 {[%emt 00:00:55] [%clk 00:12:47]} h6 {[%emt 00:00:18] [%clk 00:03:32]}
18. Bh4 {[%emt 00:01:02] [%clk 00:11:55]} g5 {[%emt 00:00:15] [%clk 00:03:28]}
19. Bg3 {[%emt 00:00:04] [%clk 00:12:01]} Nh5 {[%emt 00:00:09] [%clk 00:03:29]}
20. Rad1 {[%emt 00:00:52] [%clk 00:11:19]} Qe7 {[%emt 00:00:12] [%clk 00:03:28]}
21. Nh2 {[%emt 00:00:53] [%clk 00:10:35]} Ne6 {[%emt 00:02:12] [%clk 00:01:26]}
22. Nf1 {[%emt 00:00:31] [%clk 00:10:14]} Nhf4 {[%emt 00:01:04] [%clk 00:00:33]}
23. Ne3 {[%emt 00:00:17] [%clk 00:10:06]} Rxd1 {[%emt 00:00:26] [%clk 00:00:17]}
24. Rxd1 {[%emt 00:00:03] [%clk 00:10:12]} Rd8 {[%emt 00:00:03] [%clk 00:00:25]}
25. Nf5 {[%emt 00:00:40] [%clk 00:09:42]} Qc7 {[%emt 00:00:11] [%clk 00:00:24]}
26. Bxe6 {[%emt 00:08:07] [%clk 00:01:45]} fxe6 {[%emt 00:00:09] [%clk
00:00:25]} 27. Ne3 {[%emt 00:00:05] [%clk 00:01:50]} Bf8 {[%emt 00:00:21] [%clk
00:00:14]} 28. h4 {[%emt 00:00:35] [%clk 00:01:25]} Kg7 {[%emt 00:00:10] [%clk
00:00:15]} 29. hxg5 {[%emt 00:00:09] [%clk 00:01:25]} hxg5 {[%emt 00:00:02]
[%clk 00:00:23]} 30. Ng4 {[%emt 00:00:57] [%clk 00:00:38]} Rxd1+ {[%emt
00:00:09] [%clk 00:00:25]} 31. Qxd1 {[%emt 00:00:01] [%clk 00:00:47]} Bc5 {[%emt
00:00:10] [%clk 00:00:25]} 32. Kf1 {[%emt 00:00:29] [%clk 00:00:28]} b6 {[%emt
00:00:14] [%clk 00:00:20]} 33. Bxf4 {[%emt 00:00:10] [%clk 00:00:28]} gxf4
{[%emt 00:00:17] [%clk 00:00:13]} 34. Ke2 {[%emt 00:00:02] [%clk 00:00:35]} Be7
{[%emt 00:00:11] [%clk 00:00:13]} 35. Qb3 {[%emt 00:00:22] [%clk 00:00:23]} Kf7
{[%emt 00:00:09] [%clk 00:00:14]} 36. Nh2 {[%emt 00:00:06] [%clk 00:00:27]} Qb7
{[%emt 00:00:12] [%clk 00:00:13]} 37. Nf3 {[%emt 00:00:06] [%clk 00:00:31]} Bf6
{[%emt 00:00:02] [%clk 00:00:21]} 38. Qc4 {[%emt 00:00:15] [%clk 00:00:25]} Qd7
{[%emt 00:00:19] [%clk 00:00:12]} 39. Qd3 {[%emt 00:00:06] [%clk 00:00:30]} Qb7
{[%emt 00:00:06] [%clk 00:00:15]} 40. b4 {[%emt 00:00:10] [%clk 00:00:30]} axb4
{[%emt 00:00:10] [%clk 00:00:15]} 41. cxb4 {[%emt 00:00:01] [%clk 00:00:39]} Qa7
{[%emt 00:00:06] [%clk 00:00:19]} 42. Qb3 {[%emt 00:00:09] [%clk 00:00:40]} Qa6+
{[%emt 00:00:17] [%clk 00:00:13]} 43. b5 {[%emt 00:00:02] [%clk 00:00:48]} cxb5
{[%emt 00:00:11] [%clk 00:00:11]} 44. Qxb5 {[%clk 00:00:57]} Qxb5+ {[%emt
00:00:11] [%clk 00:00:11]} 45. axb5 {[%clk 00:01:05]} Ke8 {[%emt 00:00:05] [%clk
00:00:16]} 46. Nd2 {[%emt 00:00:10] [%clk 00:01:05]} Bd8 {[%emt 00:00:04] [%clk
00:00:22]} 47. Nc4 {[%emt 00:00:13] [%clk 00:01:02]} Bc7 {[%emt 00:00:02] [%clk
00:00:31]} 48. Kf3 {[%emt 00:00:02] [%clk 00:01:09]} Kf7 {[%emt 00:00:02] [%clk
00:00:40]} 49. Kg4 {[%emt 00:00:02] [%clk 00:01:17]} Kg6 {[%emt 00:00:01] [%clk
00:00:48]} 50. g3 {[%emt 00:00:08] [%clk 00:01:18]} fxg3 {[%emt 00:00:15] [%clk
00:00:44]} 51. fxg3 {[%emt 00:00:04] [%clk 00:01:24]} Kh6 {[%emt 00:00:10] [%clk
00:00:45]} 52. Nd2 {[%emt 00:00:17] [%clk 00:01:17]} Kg6 {[%emt 00:00:16] [%clk
00:00:38]} 53. Kh3 {[%emt 00:00:07] [%clk 00:01:20]} Bd8 {[%emt 00:00:25] [%clk
00:00:23]} 54. g4 {[%emt 00:00:18] [%clk 00:01:12]} Kg5 {[%emt 00:00:13] [%clk
00:00:20]} 55. Kg3 {[%emt 00:00:02] [%clk 00:01:20]} Kg6 {[%emt 00:00:06] [%clk
00:00:25]} 56. Nf3 {[%emt 00:00:28] [%clk 00:01:01]} Bf6 {[%emt 00:00:09] [%clk
00:00:26]} 57. Kf2 {[%emt 00:00:38] [%clk 00:00:33]} Kh6 {[%emt 00:00:10] [%clk
00:00:26]} 58. Ke2 {[%emt 00:00:07] [%clk 00:00:36]} Kg6 {[%emt 00:00:10] [%clk
00:00:26]} 59. Kd3 {[%emt 00:00:05] [%clk 00:00:42]} Kh6 {[%emt 00:00:20] [%clk
00:00:15]} 60. g5+ {[%emt 00:00:21] [%clk 00:00:31]} Bxg5 {[%emt 00:00:02] [%clk
00:00:24]} 61. Nxe5 {[%emt 00:00:01] [%clk 00:00:39]} Bh4 {[%emt 00:00:22] [%clk
00:00:12]} 62. Nd7 {[%emt 00:00:11] [%clk 00:00:38]} Bf2 {[%emt 00:00:03] [%clk
00:00:19]} 63. Nf8 {[%emt 00:00:04] [%clk 00:00:44]} e5 {[%emt 00:00:10] [%clk
00:00:20]} 64. Kc4 {[%emt 00:00:05] [%clk 00:00:49]} Kg5 {[%emt 00:00:11] [%clk
00:00:19]} 65. Kd5 {[%emt 00:00:04] [%clk 00:00:55]} Kf6 {[%emt 00:00:18] [%clk
00:00:11]} 66. Nd7+ {[%emt 00:00:03] [%clk 00:01:02]} Ke7 {[%emt 00:00:01] [%clk
00:00:19]} 67. Nxe5 {[%emt 00:00:02] [%clk 00:01:10]} Bg1 {[%emt 00:00:02] [%clk
00:00:27]} 68. Nc4 {[%emt 00:00:09] [%clk 00:01:11]} Kd7 {[%emt 00:00:03] [%clk
00:00:34]} 69. e5 {[%emt 00:00:17] [%clk 00:01:04]} Bc5 {[%emt 00:00:03] [%clk
00:00:41]} 70. Nd6 {[%emt 00:00:03] [%clk 00:01:11]} Kc7 {[%emt 00:00:30] [%clk
00:00:21]} 71. Ke6 {[%emt 00:00:07] [%clk 00:01:14]} Bd4 {[%emt 00:00:12] [%clk
00:00:19]} 72. Nc4 {[%emt 00:00:08] [%clk 00:01:16]} Bc3 {[%emt 00:00:16] [%clk
00:00:13]} 73. Kf7 {[%emt 00:00:08] [%clk 00:01:18]} Bxe5 {[%emt 00:00:05] [%clk
00:00:18]} 74. Nxe5 {[%emt 00:00:02] [%clk 00:01:27]} Kd6 {[%emt 00:00:02] [%clk
00:00:26]} 75. Nc6 {[%emt 00:00:01] [%clk 00:01:35]} 1-0

[Site "Europe Echecs"]

[Event "Championnat d'Europe Rapide"]
[Date "2024.12.07"]
[White "Quparadze, Giga"]
[Black "Stanojoski, Zvonko"]
[WhiteElo "2537"]
[BlackElo "2401"]
[Round "5.22"]
[Result "1-0"]
[TimeControl "900+10"]

1. e4 {[%emt 00:00:01] [%clk 00:15:17]} c5 {[%emt 00:00:07] [%clk 00:15:14]} 2.
Nf3 {[%emt 00:00:01] [%clk 00:15:25]} Nc6 {[%emt 00:00:04] [%clk 00:15:22]} 3.
Bb5 {[%clk 00:15:34]} Nf6 {[%emt 00:00:02] [%clk 00:15:30]} 4. Nc3 {[%emt
00:00:03] [%clk 00:15:40]} g6 {[%emt 00:00:05] [%clk 00:15:36]} 5. e5 {[%emt
00:00:02] [%clk 00:15:48]} Ng4 {[%emt 00:00:17] [%clk 00:15:29]} 6. Qe2 {[%emt
00:00:07] [%clk 00:15:51]} Bg7 {[%emt 00:00:26] [%clk 00:15:12]} 7. Bxc6 {[%emt
00:00:05] [%clk 00:15:57]} dxc6 {[%emt 00:00:03] [%clk 00:15:20]} 8. h3 {[%emt
00:00:02] [%clk 00:16:04]} Nh6 {[%emt 00:00:03] [%clk 00:15:27]} 9. Ne4 {[%emt
00:00:03] [%clk 00:16:11]} b6 {[%emt 00:00:26] [%clk 00:15:11]} 10. Nf6+ {[%emt
00:00:11] [%clk 00:16:09]} Kf8 {[%emt 00:00:12] [%clk 00:15:10]} 11. Ne4 {[%emt
00:00:01] [%clk 00:16:17]} Nf5 {[%emt 00:00:20] [%clk 00:15:01]} 12. c3 {[%emt
00:00:02] [%clk 00:16:25]} h5 {[%emt 00:00:02] [%clk 00:15:09]} 13. O-O {[%emt
00:00:11] [%clk 00:16:24]} a5 {[%emt 00:00:09] [%clk 00:15:10]} 14. d3 {[%emt
00:00:04] [%clk 00:16:29]} Qd5 {[%emt 00:00:31] [%clk 00:14:50]} 15. Bf4 {[%emt
00:00:10] [%clk 00:16:29]} Ba6 {[%emt 00:00:33] [%clk 00:14:27]} 16. c4 {[%emt
00:00:29] [%clk 00:16:10]} Qd7 {[%emt 00:00:02] [%clk 00:14:35]} 17. Neg5 {[%emt
00:00:13] [%clk 00:16:07]} e6 {[%emt 00:00:13] [%clk 00:14:32]} 18. Rfd1 {[%emt
00:00:39] [%clk 00:15:38]} Bh6 {[%emt 00:01:12] [%clk 00:13:30]} 19. Qd2 {[%emt
00:00:11] [%clk 00:15:37]} Kg7 {[%emt 00:00:28] [%clk 00:13:12]} 20. Ne4 {[%emt
00:00:05] [%clk 00:15:42]} Nd4 {[%emt 00:00:19] [%clk 00:13:03]} 21. Bxh6+
{[%emt 00:00:09] [%clk 00:15:42]} Rxh6 {[%emt 00:00:02] [%clk 00:13:12]} 22.
Nxd4 {[%emt 00:00:04] [%clk 00:15:48]} cxd4 {[%emt 00:00:17] [%clk 00:13:05]}
23. c5 {[%emt 00:00:13] [%clk 00:15:45]} bxc5 {[%emt 00:00:06] [%clk 00:13:09]}
24. b3 {[%emt 00:00:04] [%clk 00:15:52]} Qd5 {[%emt 00:00:16] [%clk 00:13:02]}
25. Qf4 {[%emt 00:00:02] [%clk 00:15:59]} Rf8 {[%emt 00:00:02] [%clk 00:13:11]}
26. Rac1 {[%emt 00:00:05] [%clk 00:16:03]} a4 {[%emt 00:00:31] [%clk 00:12:51]}
27. Rxc5 {[%emt 00:00:13] [%clk 00:15:59]} Qd7 {[%emt 00:00:02] [%clk 00:13:00]}
28. bxa4 {[%emt 00:00:02] [%clk 00:16:07]} Qb7 {[%emt 00:00:14] [%clk 00:12:56]}
29. Rcc1 {[%emt 00:00:12] [%clk 00:16:04]} Qb2 {[%emt 00:00:12] [%clk 00:12:54]}
30. Nc5 {[%emt 00:00:13] [%clk 00:16:02]} Bc8 {[%emt 00:00:32] [%clk 00:12:32]}
31. a5 {[%emt 00:00:02] [%clk 00:16:10]} g5 {[%emt 00:00:02] [%clk 00:12:41]}
32. Qxg5+ {[%emt 00:00:07] [%clk 00:16:12]} Rg6 {[%clk 00:12:50]} 33. Qd2 {[%emt
00:00:04] [%clk 00:16:18]} Qa3 {[%emt 00:00:15] [%clk 00:12:45]} 34. Ne4 {[%emt
00:00:10] [%clk 00:16:18]} c5 {[%emt 00:00:09] [%clk 00:12:47]} 35. Nxc5 {[%emt
00:00:08] [%clk 00:16:19]} Kh8 {[%emt 00:00:09] [%clk 00:12:49]} 36. Kh2 {[%emt
00:00:05] [%clk 00:16:23]} Rfg8 {[%emt 00:00:02] [%clk 00:12:57]} 37. Rg1 {[%emt
00:00:02] [%clk 00:16:31]} f5 {[%emt 00:00:27] [%clk 00:12:40]} 38. exf6 {[%emt
00:00:04] [%clk 00:16:37]} Rxf6 {[%emt 00:00:02] [%clk 00:12:48]} 39. Ne4 {[%emt
00:00:09] [%clk 00:16:37]} Rfg6 {[%emt 00:00:06] [%clk 00:12:53]} 40. Rc5 {[%emt
00:00:02] [%clk 00:16:44]} Bb7 {[%emt 00:00:13] [%clk 00:12:52]} 41. Rxh5+
{[%emt 00:00:04] [%clk 00:16:49]} Kg7 {[%clk 00:13:01]} 42. Qf4 {[%emt 00:00:07]
[%clk 00:16:53]} 1-0

[Site "Europe Echecs"]

[Event "Championnat d'Europe Rapide"]
[Date "2024.12.07"]
[White "Nikolovski, Nikola"]
[Black "Dardha, Daniel"]
[WhiteElo "2407"]
[BlackElo "2639"]
[Round "5.23"]
[Result "0-1"]
[TimeControl "900+10"]

1. e4 {[%emt 00:00:03] [%clk 00:15:17]} c6 {[%emt 00:01:10] [%clk 00:14:11]} 2.
d4 {[%emt 00:00:02] [%clk 00:15:24]} d5 {[%emt 00:00:01] [%clk 00:14:19]} 3.
exd5 {[%emt 00:00:02] [%clk 00:15:33]} cxd5 {[%emt 00:00:01] [%clk 00:14:28]} 4.
Bd3 {[%emt 00:00:02] [%clk 00:15:41]} Nc6 {[%emt 00:00:02] [%clk 00:14:36]} 5.
c3 {[%emt 00:00:01] [%clk 00:15:49]} e6 {[%emt 00:00:15] [%clk 00:14:31]} 6. Nf3
{[%emt 00:01:11] [%clk 00:14:47]} Bd6 {[%emt 00:00:03] [%clk 00:14:39]} 7. O-O
{[%emt 00:00:07] [%clk 00:14:51]} Nge7 {[%emt 00:00:02] [%clk 00:14:47]} 8. Re1
{[%emt 00:03:08] [%clk 00:11:53]} Qc7 {[%emt 00:01:11] [%clk 00:13:46]} 9. Nbd2
{[%emt 00:01:43] [%clk 00:10:20]} Bd7 {[%emt 00:01:26] [%clk 00:12:30]} 10. Nf1
{[%emt 00:02:14] [%clk 00:08:16]} O-O {[%emt 00:00:55] [%clk 00:11:45]} 11. Bd2
{[%emt 00:05:42] [%clk 00:02:44]} h6 {[%emt 00:03:11] [%clk 00:08:44]} 12. Ng3
{[%emt 00:00:18] [%clk 00:02:36]} Ng6 {[%emt 00:00:37] [%clk 00:08:18]} 13. Qc2
{[%emt 00:00:56] [%clk 00:01:50]} f5 {[%emt 00:00:47] [%clk 00:07:39]} 14. a3
{[%emt 00:00:38] [%clk 00:01:22]} Kh8 {[%emt 00:00:30] [%clk 00:07:19]} 15. Re2
{[%emt 00:00:32] [%clk 00:01:01]} Nf4 {[%emt 00:00:37] [%clk 00:06:51]} 16. Bxf4
{[%emt 00:00:12] [%clk 00:01:00]} Bxf4 {[%emt 00:00:01] [%clk 00:06:59]} 17.
Rae1 {[%emt 00:00:12] [%clk 00:00:59]} Rae8 {[%emt 00:00:36] [%clk 00:06:33]}
18. Nh4 {[%emt 00:00:10] [%clk 00:00:59]} Kh7 {[%emt 00:01:12] [%clk 00:05:31]}
19. Rxe6 {[%emt 00:00:40] [%clk 00:00:30]} Rxe6 {[%emt 00:01:42] [%clk
00:03:58]} 20. Bxf5+ {[%emt 00:00:03] [%clk 00:00:36]} Kg8 {[%emt 00:00:03]
[%clk 00:04:06]} 21. Bxe6+ {[%emt 00:00:33] [%clk 00:00:14]} Bxe6 {[%emt
00:00:01] [%clk 00:04:14]} 22. Ng6 {[%emt 00:00:09] [%clk 00:00:15]} Re8 {[%emt
00:00:51] [%clk 00:03:32]} 23. Nxf4 {[%emt 00:00:12] [%clk 00:00:12]} Qxf4
{[%emt 00:00:02] [%clk 00:03:40]} 24. Qg6 {[%emt 00:00:12] [%clk 00:00:11]} Qf7
{[%emt 00:00:08] [%clk 00:03:42]} 25. Qc2 {[%emt 00:00:07] [%clk 00:00:14]} Bd7
{[%emt 00:00:05] [%clk 00:03:47]} 26. Rf1 {[%emt 00:00:06] [%clk 00:00:18]} Ne7
{[%emt 00:00:09] [%clk 00:03:48]} 27. Ne2 {[%emt 00:00:06] [%clk 00:00:22]} Ng6
{[%emt 00:00:10] [%clk 00:03:48]} 28. f3 {[%emt 00:00:16] [%clk 00:00:15]} Bb5
{[%emt 00:00:05] [%clk 00:03:54]} 29. Rf2 {[%emt 00:00:11] [%clk 00:00:14]} Nf4
{[%emt 00:00:04] [%clk 00:04:00]} 30. Ng3 {[%emt 00:00:04] [%clk 00:00:20]} Re1+
{[%emt 00:00:09] [%clk 00:04:01]} 31. Nf1 {[%emt 00:00:02] [%clk 00:00:28]} Bxf1
{[%emt 00:00:17] [%clk 00:03:53]} 32. Rxf1 {[%emt 00:00:03] [%clk 00:00:36]} Re2
{[%emt 00:00:02] [%clk 00:04:02]} 0-1

[Site "Europe Echecs"]

[Event "Championnat d'Europe Rapide"]
[Date "2024.12.07"]
[White "Laurusas, Tomas"]
[Black "Diermair, Andreas"]
[WhiteElo "2578"]
[BlackElo "2433"]
[Round "5.24"]
[Result "1-0"]
[TimeControl "900+10"]

1. d4 {[%clk 00:15:19]} e6 {[%emt 00:00:07] [%clk 00:15:15]} 2. c4 {[%emt
00:00:02] [%clk 00:15:26]} f5 {[%emt 00:00:02] [%clk 00:15:23]} 3. g3 {[%emt
00:00:05] [%clk 00:15:33]} Nf6 {[%clk 00:15:31]} 4. Bg2 {[%clk 00:15:41]} d5
{[%emt 00:00:11] [%clk 00:15:31]} 5. Nh3 {[%emt 00:00:11] [%clk 00:15:40]} Bd6
{[%emt 00:00:02] [%clk 00:15:39]} 6. O-O {[%emt 00:00:11] [%clk 00:15:38]} O-O
{[%emt 00:00:03] [%clk 00:15:47]} 7. Bf4 {[%emt 00:00:01] [%clk 00:15:47]} Be7
{[%emt 00:00:22] [%clk 00:15:35]} 8. Nc3 {[%emt 00:00:04] [%clk 00:15:52]} c6
{[%emt 00:00:26] [%clk 00:15:20]} 9. Rc1 {[%emt 00:00:58] [%clk 00:15:04]} h6
{[%emt 00:01:38] [%clk 00:13:52]} 10. Bd2 {[%emt 00:00:54] [%clk 00:14:20]} g5
{[%emt 00:01:38] [%clk 00:12:24]} 11. Kh1 {[%emt 00:00:09] [%clk 00:14:20]} Nbd7
{[%emt 00:01:08] [%clk 00:11:27]} 12. f3 {[%emt 00:00:17] [%clk 00:14:13]} Nb6
{[%emt 00:00:42] [%clk 00:10:55]} 13. cxd5 {[%emt 00:00:47] [%clk 00:13:36]}
exd5 {[%emt 00:00:31] [%clk 00:10:34]} 14. b3 {[%emt 00:00:02] [%clk 00:13:44]}
Bd6 {[%emt 00:01:43] [%clk 00:09:01]} 15. Nf2 {[%emt 00:00:02] [%clk 00:13:52]}
Be6 {[%emt 00:01:37] [%clk 00:07:34]} 16. Nd3 {[%emt 00:00:01] [%clk 00:14:00]}
Qe8 {[%emt 00:00:28] [%clk 00:07:17]} 17. Nc5 {[%emt 00:00:38] [%clk 00:13:32]}
Bxc5 {[%emt 00:04:13] [%clk 00:03:14]} 18. dxc5 {[%emt 00:00:05] [%clk
00:13:36]} Nbd7 {[%emt 00:00:01] [%clk 00:03:23]} 19. Be3 {[%emt 00:00:01] [%clk
00:13:45]} Qe7 {[%emt 00:00:25] [%clk 00:03:09]} 20. Bd4 {[%emt 00:00:16] [%clk
00:13:39]} Bf7 {[%emt 00:00:28] [%clk 00:02:51]} 21. Qc2 {[%emt 00:00:48] [%clk
00:13:01]} Bg6 {[%emt 00:00:03] [%clk 00:02:58]} 22. Bh3 {[%emt 00:00:06] [%clk
00:13:05]} Qh7 {[%emt 00:00:09] [%clk 00:02:59]} 23. Qd2 {[%emt 00:00:12] [%clk
00:13:03]} Rae8 {[%emt 00:00:02] [%clk 00:03:07]} 24. a4 {[%emt 00:01:19] [%clk
00:11:55]} a6 {[%emt 00:00:14] [%clk 00:03:02]} 25. Qb2 {[%emt 00:01:20] [%clk
00:10:45]} Qe7 {[%emt 00:00:15] [%clk 00:02:57]} 26. Rfe1 {[%emt 00:00:43] [%clk
00:10:12]} Kh7 {[%emt 00:00:11] [%clk 00:02:56]} 27. Nd1 {[%emt 00:00:24] [%clk
00:09:57]} Nh5 {[%emt 00:00:26] [%clk 00:02:40]} 28. Nf2 {[%emt 00:00:24] [%clk
00:09:43]} f4 {[%emt 00:00:15] [%clk 00:02:36]} 29. Bxd7 {[%emt 00:00:02] [%clk
00:09:51]} Qxd7 {[%emt 00:00:18] [%clk 00:02:28]} 30. g4 {[%emt 00:00:03] [%clk
00:09:58]} Ng7 {[%emt 00:00:02] [%clk 00:02:36]} 31. b4 {[%emt 00:00:07] [%clk
00:10:01]} Ne6 {[%emt 00:00:07] [%clk 00:02:38]} 32. Be5 {[%emt 00:00:03] [%clk
00:10:08]} Nc7 {[%emt 00:00:18] [%clk 00:02:31]} 33. Kg2 {[%emt 00:00:19] [%clk
00:09:59]} Re6 {[%emt 00:00:46] [%clk 00:01:55]} 34. h4 {[%emt 00:00:08] [%clk
00:10:01]} Rfe8 {[%emt 00:00:32] [%clk 00:01:34]} 35. Bxc7 {[%emt 00:00:51]
[%clk 00:09:19]} Qxc7 {[%emt 00:00:01] [%clk 00:01:43]} 36. hxg5 {[%emt
00:00:01] [%clk 00:09:27]} Re5 {[%emt 00:00:32] [%clk 00:01:22]} 37. Rh1 {[%emt
00:00:49] [%clk 00:08:48]} Qg7 {[%emt 00:00:36] [%clk 00:00:57]} 38. Rxh6+
{[%emt 00:00:42] [%clk 00:08:15]} Kg8 {[%emt 00:00:01] [%clk 00:01:06]} 39. Qd2
{[%emt 00:02:47] [%clk 00:05:38]} Rxg5 {[%emt 00:00:25] [%clk 00:00:51]} 40.
Rch1 {[%emt 00:00:06] [%clk 00:05:42]} Qf6 {[%emt 00:00:39] [%clk 00:00:22]} 41.
Nd3 {[%emt 00:00:45] [%clk 00:05:07]} Rxg4+ {[%emt 00:00:13] [%clk 00:00:19]}
42. fxg4 {[%emt 00:00:14] [%clk 00:05:03]} Be4+ {[%emt 00:00:01] [%clk
00:00:28]} 43. Kf1 {[%emt 00:00:32] [%clk 00:04:40]} Qa1+ {[%emt 00:00:21] [%clk
00:00:17]} 44. Qe1 {[%emt 00:00:33] [%clk 00:04:18]} Qxe1+ {[%emt 00:00:12]
[%clk 00:00:15]} 45. Nxe1 {[%emt 00:00:25] [%clk 00:04:04]} Bxh1 {[%emt
00:00:01] [%clk 00:00:23]} 46. Rxh1 {[%emt 00:00:02] [%clk 00:04:12]} Re4 {[%emt
00:00:08] [%clk 00:00:25]} 47. Nd3 {[%emt 00:00:01] [%clk 00:04:21]} a5 {[%emt
00:00:05] [%clk 00:00:31]} 48. b5 {[%emt 00:00:23] [%clk 00:04:07]} Kg7 {[%emt
00:00:09] [%clk 00:00:31]} 49. bxc6 {[%emt 00:00:11] [%clk 00:04:07]} bxc6
{[%emt 00:00:01] [%clk 00:00:40]} 50. Kf2 {[%emt 00:00:02] [%clk 00:04:15]} Rxa4
{[%emt 00:00:05] [%clk 00:00:46]} 51. Rb1 {[%emt 00:00:04] [%clk 00:04:21]} 1-0

[Site "Europe Echecs"]